bitfinex-derivatives/quotes_ETHF0:USTF0_20251012
["timestamp","ask_amount","ask_price","bid_price","bid_amount"]
[1760283831926,0.00228289,4014.5,4014.4,0.0029506]
[1760283832128,3.3905,4015.1,4014.4,3.5096506]
[1760283832330,3.3905,4015.1,4015.0,3.2078]
[1760283833026,3.39295635,4015.1,4015.0,3.2078]
[1760283833235,0.00245635,4015.1,4015.0,7.36036206]
[1760283833443,0.00245635,4015.1,4015.0,6.7145]
[1760283833631,1.75943,4016.5,4015.1,0.44808]
[1760283833833,1.75943,4016.5,4015.5,8.20198709]
[1760283833834,3.3905,4015.9,4015.5,8.20198709]
[1760283834035,3.3905,4015.9,4015.5,8.8474725]
[1760283834232,3.3905,4015.9,4015.5,8.20198709]
[1760283834428,3.3905,4016.4,4015.8,4.99418709]
[1760283834634,3.39321294,4016.4,4016.3,4.99418709]
[1760283835438,3.3905,4016.1,4016.0,3.2078]
[1760283836034,3.3905,4016.1,4015.6,4.99418709]
[1760283836035,3.3905,4015.9,4015.6,4.99418709]
[1760283836236,1.3115,4016.0,4015.6,4.99418709]
[1760283836627,1.75948,4016.0,4015.6,4.99418709]
[1760283837032,2.82732655,4015.9,4015.6,4.99418709]
[1760283837239,2.82732655,4015.9,4015.4,4.99418709]
[1760283837435,0.44801,4015.8,4015.4,4.99418709]
[1760283837636,2.82732655,4015.9,4015.4,4.99418709]
[1760283838033,0.448,4015.8,4015.4,4.99418709]
[1760283838940,0.44807,4015.2,4014.9,4.99418709]
[1760283839137,3.3905,4015.4,4014.9,4.99418709]
[1760283839331,0.44805,4015.4,4014.9,4.99418709]
[1760283839738,3.3905,4015.3,4014.9,4.99418709]
[1760283839939,3.3905,4015.0,4014.9,4.99418709]
[1760283840837,4.702,4015.5,4014.9,4.99418709]
[1760283841143,3.83853,4015.5,4015.4,8.20198709]
[1760283841352,3.83853,4015.5,4015.4,3.97838709]
[1760283841638,3.3905,4015.5,4015.4,3.97838709]
[1760283841832,4.702,4015.5,4015.4,3.97838709]
[1760283843041,0.44809,4015.0,4014.8,4.99418709]
[1760283843239,3.165,4014.9,4014.8,4.99418709]
[1760283843444,3.165,4014.7,4014.6,4.99418709]
[1760283843644,0.44813,4014.6,4014.4,0.0029506]
[1760283843943,45.2737,4014.5,4014.4,0.0029506]
[1760283844243,45.2737,4014.5,4014.0,4.99418709]
[1760283844244,3.61319,4014.1,4014.0,4.99418709]
[1760283844438,3.165,4013.3,4013.2,3.2078]
[1760283844742,1.3087,4014.0,4013.2,8.20198709]
[1760283844743,3.165,4013.9,4013.2,8.20198709]
[1760283844944,3.61321,4013.9,4013.8,4.99418709]
[1760283845146,6.37641251,4013.9,4013.8,4.99687853]
[1760283845344,3.61327,4013.4,4013.3,4.99418709]
[1760283845642,6.37338442,4013.4,4013.2,3.2078]
[1760283846037,3.61332,4012.9,4012.8,4.99418709]
[1760283846441,3.61332,4012.9,4012.8,4.99724876]
[1760283846747,44.41332,4012.9,4012.8,4.99724876]
[1760283846948,44.41332,4012.9,4012.8,0.00306167]
[1760283847244,47.1515858,4012.9,4012.8,0.00306167]
[1760283847438,47.1515858,4012.9,4012.8,4.99724876]
[1760283847638,43.965,4012.9,4012.8,4.99724876]
[1760283847939,3.165,4013.3,4012.9,3.207]
[1760283848141,3.165,4013.8,4013.2,0.64552976]
[1760283848341,3.165,4013.3,4013.2,0.64552976]
[1760283849345,3.165,4013.1,4013.0,0.86070635]
[1760283849538,44.41324,4013.7,4013.0,5.85489344]
[1760283849737,43.965,4013.7,4013.6,4.99418709]
[1760283850144,3.165,4013.7,4013.6,5.63952036]
[1760283850445,3.165,4013.7,4013.6,4.99418709]
[1760283850646,43.965,4013.7,4013.6,4.99418709]
[1760283851238,0.44826,4013.5,4013.4,4.99418709]
[1760283851438,3.165,4013.3,4013.2,3.8551431]
[1760283851747,3.165,4013.3,4012.2,1.70932986]
[1760283851748,3.165,4013.3,4011.8,1.29880508]
[1760283851749,0.44844,4011.9,4011.8,1.29880508]
[1760283851942,3.61346,4011.7,4011.6,3.2078]
[1760283852440,3.165,4011.7,4011.6,4.5032871]
[1760283852636,43.965,4011.9,4011.6,6.4148]
[1760283852845,0.44845,4011.8,4011.6,6.41755181]
[1760283853041,3.61345,4011.8,4011.6,3.21055181]
[1760283853643,0.01,4011.7,4011.6,3.21055181]
[1760283853844,3.175,4011.7,4011.6,3.21055181]
[1760283854346,5.91638605,4011.7,4011.6,3.21055181]
[1760283854650,3.175,4011.7,4011.6,3.21055181]
[1760283855042,0.01,4011.7,4011.6,4.50603891]
[1760283855238,0.01,4011.7,4011.6,3.21055181]
[1760283855547,3.175,4011.7,4011.6,3.21055181]
[1760283855937,40.8,4011.9,4011.6,3.21055181]
[1760283856240,3.165,4012.4,4011.9,0.44843]
[1760283856542,43.965,4012.9,4012.3,8.20118709]
[1760283856742,43.965,4012.9,4012.8,6.29847165]
[1760283857142,46.82018272,4012.9,4012.8,6.29847165]
[1760283857443,46.82018272,4012.9,4012.8,4.99418709]
[1760283857849,3.165,4012.7,4012.6,5.63974906]
[1760283858050,3.165,4012.7,4012.6,10.58616852]
[1760283858347,3.165,4013.3,4012.7,3.207]
[1760283858536,1.3087,4013.5,4013.0,1.74745927]
[1760283858742,0.44828,4013.3,4013.2,1.74745927]
[1760283859040,47.12809792,4013.3,4013.2,1.74745927]
[1760283859240,0.44833,4012.9,4012.7,2.20543702]
[1760283859545,0.44833,4012.9,4012.6,8.84754906]
[1760283859546,3.165,4012.8,4012.6,8.84754906]
[1760283860049,4.3284,4013.7,4012.6,8.84754906]
[1760283860050,3.165,4013.6,4012.7,3.207]
[1760283860240,3.165,4014.0,4013.5,5.63974906]
[1760283860544,43.965,4014.2,4013.8,5.39509161]
[1760283860749,43.965,4014.2,4013.8,8.60209161]
[1760283860942,0.44819,4014.1,4013.8,8.60209161]
[1760283861150,44.41319,4014.2,4013.8,5.39509161]
[1760283861348,0.44819,4014.1,4013.8,5.39509161]
[1760283861647,43.965,4014.2,4013.8,5.39509161]
[1760283861854,44.41318,4014.2,4013.8,5.39509161]
[1760283862151,43.965,4014.2,4013.8,8.60209161]
[1760283862350,3.2078,4014.7,4013.8,8.60209161]
[1760283862541,3.165,4014.8,4014.6,0.44813]
[1760283862746,3.165,4015.0,4014.9,5.63974906]
[1760283863051,43.965,4015.0,4014.9,7.82119577]
[1760283863245,43.965,4015.0,4014.9,5.63974906]
[1760283863441,43.96804364,4015.0,4014.9,5.64168224]
[1760283863851,40.80304364,4015.0,4014.9,5.64168224]
[1760283864156,40.80304364,4015.0,4014.9,8.84868224]
[1760283864448,40.80304364,4015.0,4014.9,5.64168224]
[1760283864449,3.16804364,4015.0,4014.9,5.64168224]
[1760283865446,3.53790304,4015.0,4014.9,5.64168224]
[1760283866143,7.45845393,4015.0,4014.9,0.00193318]
[1760283866349,6.33505393,4015.0,4014.9,0.00193318]
[1760283866649,3.53790304,4015.0,4014.9,0.00193318]
[1760283868252,7.40697273,4015.0,4014.9,0.00193318]
[1760283869445,4.66130304,4015.0,4014.9,0.00193318]
[1760283869751,7.29954898,4015.0,4014.9,0.00193318]
[1760283870648,4.66130304,4015.0,4014.9,1.74230296]
[1760283870844,7.3446858,4015.0,4014.9,0.00193318]
[1760283872448,0.4481,4014.9,4014.7,3.2078]
[1760283872649,3.4558,4014.8,4014.4,2.18144671]
[1760283872955,3.4558,4014.3,4014.1,3.65599]
[1760283873149,3.4558,4014.2,4014.1,3.2078]
[1760283873455,46.861457,4014.2,4014.1,5.84016383]
[1760283873657,44.2558,4014.2,4014.1,5.84016383]
[1760283874158,44.2558,4014.2,4014.1,3.65871712]
[1760283874349,44.2558,4014.2,4014.1,5.83714079]
[1760283874750,40.8,4014.2,4014.1,9.08844079]
[1760283874952,3.90398,4014.2,4014.1,3.21052712]
[1760283875154,3.90398,4014.2,4014.1,5.37678448]
[1760283875350,0.4482,4014.0,4013.9,1.74479558]
[1760283875555,0.4482,4014.0,4013.8,1.74479558]
[1760283875556,0.44821,4013.9,4013.8,1.74479558]
[1760283875954,0.44823,4013.7,4013.6,3.2078]
[1760283876361,0.44823,4013.7,4013.6,3.21087397]
[1760283876362,3.11963648,4013.7,4013.6,3.21087397]
[1760283877454,0.44823,4013.7,4013.6,3.21087397]
[1760283877656,0.44821,4013.9,4013.7,3.2513]
[1760283877952,0.44823,4013.7,4013.6,3.21087397]
[1760283878467,3.12626793,4013.7,4013.6,3.21087397]
[1760283881051,1.12066,4013.5,4013.1,1.74479558]
[1760283881250,0.44832,4012.9,4012.7,1.16934558]
[1760283881552,0.44841,4012.1,4012.0,8.84754906]
[1760283881858,3.26308399,4012.1,4012.0,3.2078]
[1760283882060,0.44846,4011.7,4011.6,5.63974906]
[1760283882252,0.44846,4011.7,4011.6,5.64265034]
[1760283882450,44.09492933,4011.7,4011.6,5.64265034]
[1760283883051,41.24846,4011.7,4011.6,5.64265034]
[1760283883258,44.05372133,4011.7,4011.6,5.64265034]
[1760283884563,41.24846,4011.7,4011.6,5.64265034]
[1760283885066,43.9993375,4011.7,4011.6,5.64265034]
[1760283885362,44.0029375,4011.7,4011.6,5.64265034]
[1760283886758,44.0029375,4011.7,4011.6,0.00290128]
[1760283888262,43.5544775,4011.7,4011.6,0.00290128]
[1760283888464,43.5544775,4011.7,4011.6,1.28e-06]
[1760283889760,43.5544775,4011.7,4010.2,3.1761]
[1760283889761,0.44859,4010.5,4010.4,3.2078]
[1760283890158,3.16359734,4010.5,4010.4,3.2078]
[1760283890665,3.16359734,4010.5,4010.4,3.21101137]
[1760283890960,43.96359734,4010.5,4010.4,0.00321137]
[1760283891163,47.17139734,4010.5,4010.4,1.37e-06]
[1760283891357,50.37197059,4010.5,4010.4,1.37e-06]
[1760283891660,50.37197059,4010.5,4009.1,3.2078]
[1760283891661,0.44874,4009.2,4009.1,3.2078]
[1760283891866,0.82811328,4009.2,4009.1,3.2078]
[1760283892067,0.44866,4010.0,4009.6,3.1761]
[1760283892266,0.44864,4010.1,4010.0,3.1761]
[1760283892568,0.45127793,4010.1,4010.0,0.00262567]
[1760283892761,3.23095025,4010.1,4010.0,0.00262567]
[1760283893066,0.45127793,4010.1,4010.0,3.17872567]
[1760283893363,0.45127793,4010.1,4010.0,0.00262567]
[1760283893968,5.95120861,4010.1,4009.2,8.81584906]
[1760283894265,0.44872,4009.4,4009.3,3.1761]
[1760283894962,0.44872,4009.4,4009.3,3.17832331]
[1760283895164,0.44872,4009.4,4009.3,0.00222331]
[1760283895365,0.44872,4009.4,4009.1,3.2078]
[1760283895366,0.44874,4009.2,4009.1,3.2078]
[1760283895666,0.44879,4008.7,4008.6,12.02364906]
[1760283895868,0.44879,4008.7,4008.6,8.84754906]
[1760283896562,3.28573372,4008.7,4008.6,8.850757]
[1760283896771,3.28573372,4008.7,4008.6,0.00320794]
[1760283897468,0.44888,4007.9,4007.5,3.2078]
[1760283897767,0.44888,4007.9,4007.8,3.20105134]
[1760283898273,0.44888,4007.9,4007.8,3.20318384]
[1760283901163,0.44888,4008.0,4007.9,3.1761]
[1760283901468,0.83024762,4009.1,4009.0,1.3602]
[1760283901669,0.44869,4009.7,4009.5,1.8089]
[1760283901861,0.44869,4009.7,4009.6,3.1761]
[1760283902069,0.44871,4009.5,4009.3,3.2078]
[1760283902266,0.44872,4009.4,4009.1,3.62484]
[1760283902469,0.4487,4009.6,4009.5,1.3526]
[1760283902767,0.4487,4009.6,4009.5,4.7016]
[1760283903972,0.00263793,4010.1,4009.7,3.349]
[1760283903973,0.44868,4009.8,4009.7,3.349]
[1760283904172,0.44868,4009.8,4009.7,8.98874906]
[1760283904367,0.00263793,4010.1,4010.0,1.80125]
[1760283904565,11.207,4013.4,4010.0,1.80125]
[1760283904566,3.2078,4012.6,4011.3,3.349]
[1760283904761,1.12062,4013.7,4011.5,1.31195711]
[1760283904762,3.2078,4012.3,4011.5,1.31195711]
[1760283904967,0.0396,4011.0,4010.9,5.63974906]
[1760283905164,0.44859,4010.6,4010.3,10.29474822]
[1760283905365,0.44861,4010.3,4010.0,1.30599916]
[1760283905659,0.00281525,4010.3,4010.1,3.349]
[1760283905859,0.48824,4010.2,4010.0,0.0022416]
[1760283906063,0.48824,4010.2,4008.9,2.17087269]
[1760283906064,0.48833,4009.3,4009.2,4.51379916]
[1760283906271,3.574974,4010.1,4009.2,4.51379916]
[1760283906272,0.44869,4009.7,4009.2,4.51379916]
[1760283906469,40.8,4009.6,4009.5,5.63974906]
[1760283906671,0.367174,4010.1,4009.5,6.99234906]
[1760283906875,0.44869,4009.6,4009.5,6.94865862]
[1760283907071,0.48829,4009.6,4009.5,5.64231098]
[1760283907271,0.48829,4009.6,4009.5,0.00256192]
[1760283907467,0.367174,4010.1,4009.5,1.3526]
[1760283907667,0.00281525,4010.3,4010.0,6.99234906]
[1760283907974,3.28529279,4010.2,4010.0,8.30085358]
[1760283908374,3.28529279,4010.2,4010.0,8.30392256]
[1760283908575,0.0396,4010.1,4010.0,1.3115735]
[1760283908874,0.0396,4010.1,4010.0,0.00306898]
[1760283909269,0.0396,4009.9,4009.8,1.30850452]
[1760283909470,2.8409902,4010.1,4009.8,1.30850452]
[1760283909668,0.37238507,4010.3,4010.1,3.349]
[1760283909868,0.37238507,4010.3,4010.1,4.65891374]
[1760283910069,0.37238507,4010.3,4010.2,8.98874906]
[1760283910271,0.06556859,4010.3,4010.2,8.99059878]
[1760283910672,0.44854,4011.0,4010.3,3.349]
[1760283910872,0.44854,4011.0,4010.9,5.63974906]
[1760283911067,4.02909794,4011.1,4010.9,5.63974906]
[1760283911266,4.07128887,4011.1,4010.9,5.63974906]
[1760283911471,2.7172669,4011.0,4010.9,5.63974906]
[1760283912173,0.44859,4010.5,4010.4,3.2078]
[1760283912776,41.24859,4010.5,4010.4,3.2078]
[1760283913078,41.24859,4010.5,4010.3,5.63974906]
[1760283913776,41.24859,4010.5,4010.3,10.73382724]
[1760283914181,41.24859,4010.5,4010.4,3.349]
[1760283914379,40.8,4010.5,4010.4,3.349]
[1760283915079,0.4486,4010.4,4010.3,5.63974906]
[1760283915375,0.4486,4010.4,4010.3,7.38865437]
[1760283915572,3.26639457,4010.4,4010.3,7.38865437]
[1760283915768,3.22679457,4010.4,4010.3,7.38865437]
[1760283915977,3.22679457,4010.4,4010.3,5.63974906]
[1760283916179,3.22679457,4010.4,4010.3,7.38865437]
[1760283916673,3.22679457,4010.4,4010.3,5.63974906]
[1760283917274,3.23679457,4010.4,4010.3,5.63974906]
[1760283917474,0.01,4010.4,4010.3,8.98874906]
[1760283917769,0.01,4010.4,4010.3,10.73765437]
[1760283917974,0.01,4010.4,4010.3,7.38865437]
[1760283918171,40.81,4010.4,4010.3,7.38865437]
[1760283918872,40.81,4010.4,4010.3,5.63974906]
[1760283919377,0.01,4010.4,4010.3,10.73765437]
[1760283919782,0.01,4010.4,4010.3,10.07712105]
[1760283920176,40.8,4010.7,4010.6,3.349]
[1760283920576,40.8,4010.7,4010.5,1.3526]
[1760283920875,0.44859,4010.6,4010.4,3.349]
[1760283921081,40.8,4010.7,4010.6,3.349]
[1760283921775,0.44857,4010.8,4010.6,0.44858]
[1760283922084,0.44857,4010.8,4010.7,3.349]
[1760283922785,0.44857,4010.8,4010.7,5.10123816]
[1760283923079,40.8,4011.0,4010.7,5.10123816]
[1760283923080,40.8,4011.0,4010.8,0.44855]
[1760283923381,0.45112093,4011.1,4011.0,4.7016]
[1760283923576,0.45112093,4011.1,4011.0,6.4538025]
[1760283923879,40.80259093,4011.1,4011.0,4.7016]
[1760283924076,40.80259093,4011.1,4011.0,6.45188615]
[1760283924282,0.44854,4011.0,4010.9,6.72950189]
[1760283924580,0.44854,4011.0,4010.9,1.75028615]
[1760283924782,0.44854,4011.0,4010.9,6.72950189]
[1760283925179,0.44854,4011.0,4010.4,2.17087269]
[1760283925180,0.44857,4010.7,4010.6,0.71414482]
[1760283925474,0.44861,4010.3,4010.0,2.1339]
[1760283925679,3.65641,4010.3,4010.2,1.31461824]
[1760283925878,6.35476075,4010.3,4010.2,0.00184972]
[1760283926078,47.15476075,4010.3,4010.2,0.00184972]
[1760283926280,47.15476075,4010.3,4010.2,4.98106546]
[1760283926582,0.44864,4010.1,4010.0,3.44666852]
[1760283926774,0.44864,4010.1,4010.0,2.1339]
[1760283927078,6.31178902,4010.1,4009.9,1.00813]
[1760283927676,40.8,4010.0,4009.9,1.01104817]
[1760283928183,46.60465317,4010.0,4009.9,0.00291817]
[1760283928785,46.60465317,4010.0,4009.9,6.29490243]
[1760283928983,40.8,4010.0,4009.9,1.31217602]
[1760283929284,43.53826602,4010.0,4009.9,4.98213391]
[1760283930582,40.8,4010.0,4009.9,4.98213391]
[1760283931995,40.8,4010.0,4009.9,8.33113391]
[1760283932188,3.2078,4010.3,4010.2,3.349]
[1760283934093,0.44861,4010.4,4010.2,5.78419269]
[1760283934291,0.44859,4010.6,4010.4,0.4486]
[1760283934491,0.44859,4010.6,4010.5,4.97921574]
[1760283935091,41.17030586,4010.7,4010.5,8.14391574]
[1760283935288,0.37030586,4010.7,4010.6,3.1647]
[1760283935487,0.01259093,4011.1,4010.9,3.61325]
[1760283935690,0.01259093,4011.1,4010.5,6.37901574]
[1760283935691,3.2078,4011.7,4011.1,3.1647]
[1760283935898,3.65626,4011.7,4011.6,4.97921574]
[1760283936291,44.45626,4011.7,4011.6,4.97921574]
[1760283936490,0.0026,4012.5,4012.2,0.4484]
[1760283936693,0.089,4012.7,4012.2,0.4484]
[1760283936694,0.089,4012.7,4012.5,0.44837]
[1760283936893,0.089,4012.7,4012.6,6.3725]
[1760283937789,40.889,4013.1,4012.9,0.44832]
[1760283937997,3.2078,4014.1,4013.6,3.1647]
[1760283938292,3.2078,4014.1,4014.0,4.5645]
[1760283938488,0.60016112,4014.5,4014.0,9.58681574]
[1760283938695,0.15503652,4014.5,4014.4,4.97921574]
[1760283939001,0.15503652,4014.5,4014.4,8.14391574]
[1760283939299,0.0030254,4014.5,4014.4,8.14391574]
[1760283940203,0.0030254,4014.5,4014.4,9.44382024]
[1760283940796,3.2078,4015.3,4015.1,3.1647]
[1760283940993,0.0026,4016.3,4015.2,4.97921574]
[1760283940994,0.44801,4015.8,4015.2,4.97921574]
[1760283941194,0.44802,4015.7,4015.6,3.2078]
[1760283941396,0.44797,4016.1,4015.6,6.3725]
[1760283941696,0.44794,4016.4,4015.7,0.44801]
[1760283941896,0.44797,4016.1,4015.7,3.1647]
[1760283942093,0.00198297,4016.4,4015.7,3.1647]
[1760283942296,0.00198297,4016.4,4016.3,8.14391574]
[1760283942490,0.00198297,4016.4,4016.3,8.1467113]
[1760283942698,0.44789,4016.9,4016.3,8.5946513]
[1760283942893,3.2078,4018.0,4017.1,3.1647]
[1760283943103,0.44768,4018.7,4018.0,1.3998]
[1760283943303,3.2078,4018.8,4018.1,3.1647]
[1760283943493,3.2078,4018.8,4018.0,1.3998]
[1760283943494,40.8,4018.9,4018.8,3.1647]
[1760283943693,0.0026,4020.1,4019.0,1.4021]
[1760283943897,0.44755,4019.8,4019.7,4.97921574]
[1760283944295,2.76778613,4019.8,4019.7,4.97921574]
[1760283944801,41.25052878,4019.8,4019.7,4.98162229]
[1760283945503,41.25052878,4019.8,4019.7,8.33652229]
[1760283945901,0.00297878,4019.8,4019.7,8.33652229]
[1760283946101,3.2078,4020.6,4019.7,8.33652229]
[1760283946102,3.2078,4020.6,4019.8,3.3549]
[1760283946302,3.2078,4020.6,4019.7,4.98162229]
[1760283946303,3.2078,4020.6,4020.5,4.97921574]
[1760283947105,0.44751,4020.2,4020.0,4.97921574]
[1760283947300,46.77773631,4020.6,4020.0,4.97921574]
[1760283947500,44.01094698,4020.6,4020.2,3.3549]
[1760283947701,0.00314698,4020.6,4020.5,4.97921574]
[1760283947902,1.11833,4021.9,4021.5,1.4021]
[1760283947903,3.2078,4021.9,4021.5,1.4021]
[1760283948106,40.8,4023.4,4022.0,4.757]
[1760283948402,40.8,4023.4,4022.6,3.2078]
[1760283948403,0.44723,4022.7,4022.6,3.2078]
[1760283948595,49.98246021,4023.4,4022.3,4.97921574]
[1760283948800,49.98246021,4023.4,4022.3,8.33411574]
[1760283948801,0.44724,4022.6,4022.3,8.33411574]
[1760283948999,0.00303655,4022.6,4022.3,3.35682862]
[1760283949203,0.00303655,4022.6,4022.5,8.33411574]
[1760283949401,0.00303655,4022.6,4022.5,9.73621574]
[1760283949605,0.44717,4023.3,4022.6,3.3549]
[1760283949804,0.44716,4023.3,4023.2,3.2078]
[1760283950005,3.2078,4024.3,4023.0,8.33411574]
[1760283950201,3.2078,4024.3,4023.9,3.3549]
[1760283950400,3.2078,4025.0,4023.5,4.97921574]
[1760283950600,0.00227532,4025.0,4024.9,4.97921574]
[1760283950907,0.00227532,4025.0,4024.9,8.18701574]
[1760283951105,0.44701,4024.7,4024.6,4.97921574]
[1760283951296,0.44701,4024.7,4023.9,3.3549]
[1760283951297,0.44712,4023.8,4023.7,3.3549]
[1760283951606,0.44712,4023.7,4023.6,3.2078]
[1760283951800,0.44718,4023.2,4023.1,3.2078]
[1760283952002,11.17543,4024.7,4023.2,3.3549]
[1760283952003,0.44716,4023.4,4023.2,3.3549]
[1760283952305,0.44718,4023.2,4023.1,8.18701574]
[1760283952506,3.23522541,4024.2,4023.1,8.18701574]
[1760283952507,2.35350156,4024.4,4023.1,8.18701574]
[1760283952804,0.44711,4023.8,4023.6,4.97921574]
[1760283953103,0.44711,4023.8,4023.7,3.3549]
[1760283953302,40.8,4023.9,4023.8,3.3549]
[1760283953601,40.8,4023.9,4023.6,9.58911574]
[1760283953602,0.44711,4023.9,4023.6,9.58911574]
[1760283953808,0.44708,4024.1,4023.6,9.58911574]
[1760283954005,0.44708,4024.1,4024.0,8.33411574]
[1760283954200,3.2078,4024.9,4024.0,8.33411574]
[1760283954405,3.2078,4024.9,4024.1,3.2078]
[1760283954603,3.2078,4024.9,4024.1,11.54191574]
[1760283954604,0.44706,4024.2,4024.1,11.54191574]
[1760283954902,0.44704,4024.5,4024.3,3.3549]
[1760283955102,0.44706,4024.2,4024.1,3.2078]
[1760283955302,0.44712,4023.7,4023.6,3.2078]
[1760283955507,0.44712,4023.7,4023.6,6.5627]
[1760283955906,0.4471,4023.9,4023.6,6.5627]
[1760283956105,40.8,4024.7,4024.0,0.44708]
[1760283956311,40.8,4024.7,4024.6,11.54191574]
[1760283956702,0.44705,4024.3,4024.1,8.18701574]
[1760283956907,0.44705,4024.3,4024.1,3.2078]
[1760283957103,0.44712,4023.7,4023.6,3.2078]
[1760283957411,0.44712,4023.7,4023.6,6.5627]
[1760283957709,3.32104282,4023.7,4023.6,3.2078]
[1760283957911,44.0078,4024.7,4024.0,1.4021]
[1760283958103,0.44701,4024.8,4024.6,4.97921574]
[1760283958503,40.8,4024.7,4024.6,8.33411574]
[1760283958711,40.8,4024.7,4023.6,3.2078]
[1760283958712,0.44712,4023.7,4023.6,3.2078]
[1760283959008,0.4471,4023.9,4023.7,3.3549]
[1760283959311,44.0078,4024.7,4023.8,8.78121574]
[1760283959312,0.44706,4024.3,4023.8,8.78121574]
[1760283959507,44.0078,4024.7,4024.1,3.3549]
[1760283959508,0.44704,4024.5,4024.1,3.3549]
[1760283959711,0.44704,4024.5,4024.0,1.4021]
[1760283959712,0.44704,4024.5,4024.4,8.33411574]
[1760283960007,0.44704,4024.5,4024.4,3.3549]
[1760283960505,40.8,4024.7,4024.2,8.18701574]
[1760283960506,0.44705,4024.4,4024.2,8.18701574]
[1760283960701,1.11972532,4025.0,4024.5,1.4021]
[1760283960702,0.00227532,4025.0,4024.5,1.4021]
[1760283960907,0.00227532,4025.0,4024.9,8.33411574]
[1760283961302,3.2078,4026.1,4025.1,3.3549]
[1760283961513,0.00649332,4026.9,4026.5,1.4021]
[1760283961811,0.00649332,4026.9,4026.8,8.18701574]
[1760283962108,3.2078,4027.8,4026.8,8.18701574]
[1760283962109,3.2795,4028.0,4026.9,3.3549]
[1760283962310,3.72625,4027.0,4026.9,0.00243335]
[1760283962614,3.2078,4027.6,4027.0,3.4362]
[1760283962615,5.87920647,4027.4,4027.0,3.4362]
[1760283962800,3.4185,4027.7,4027.3,8.18701574]
[1760283963007,1.17982646,4029.3,4027.3,8.18701574]
[1760283963008,40.8,4028.7,4027.9,3.4362]
[1760283963205,40.8,4028.7,4027.2,1.2672]
[1760283963206,44.66507,4028.7,4028.6,3.2078]
[1760283963407,2.58960859,4027.9,4027.6,3.4362]
[1760283963608,3.25929294,4028.6,4027.8,9.68261574]
[1760283963907,3.25929294,4028.6,4028.0,3.2078]
[1760283963908,0.44662,4028.2,4028.0,3.2078]
[1760283964110,0.00303898,4028.2,4028.0,6.644]
[1760283964304,0.00303898,4028.2,4027.3,3.2078]
[1760283964305,3.8652,4027.5,4027.3,3.2078]
[1760283964504,3.2944022,4028.1,4027.5,3.4362]
[1760283964803,3.4185,4030.5,4028.0,13.16623148]
[1760283965008,12.30352026,4032.0,4029.9,3.65422]
[1760283965009,6.6263,4031.1,4029.9,3.65422]
[1760283965312,1.14828026,4032.0,4029.4,3.2078]
[1760283965313,3.4185,4030.0,4029.4,3.2078]
[1760283965608,3.2078,4030.4,4030.0,3.4362]
[1760283965812,0.4464,4030.2,4030.0,0.0022578]
[1760283966009,44.0078,4030.1,4030.0,0.0022578]
[1760283966206,0.00245084,4030.4,4030.0,0.0022578]
[1760283966403,0.00245084,4030.4,4030.3,3.4362]
[1760283966708,3.86491,4030.1,4030.0,0.0022578]
[1760283966909,6.01605831,4030.3,4028.4,4.7034]
[1760283966910,3.4185,4029.4,4028.4,4.7034]
[1760283967111,3.2078,4029.2,4028.4,4.7034]
[1760283967311,0.44653,4029.0,4028.4,4.7034]
[1760283967502,3.4185,4029.6,4028.7,8.18701574]
[1760283967701,0.4465,4029.4,4029.2,4.97921574]
[1760283968009,3.2078,4029.9,4029.3,3.4362]
[1760283968208,0.44658,4028.6,4028.5,0.0063]
[1760283968407,1.11642,4028.7,4027.7,3.4362]
[1760283968613,3.4185,4027.7,4026.9,3.4362]
[1760283968808,0.44686,4026.1,4024.5,3.4362]
[1760283969010,3.2416416,4025.3,4024.3,3.4362]
[1760283969210,3.2416416,4025.3,4022.9,3.2078]
[1760283969211,6.6441,4024.8,4022.9,3.2078]
[1760283969414,3.2078,4023.7,4022.9,3.2078]
[1760283969613,3.2078,4024.6,4023.6,4.475]
[1760283970007,0.0338416,4024.1,4023.7,4.97921574]
[1760283970203,0.0338416,4024.1,4023.8,0.44711]
[1760283970602,0.0338416,4024.1,4023.7,4.98225167]
[1760283970807,3.65489,4024.0,4023.7,0.00303593]
[1760283971112,3.4363,4023.8,4023.2,4.97921574]
[1760283971305,3.2078,4025.4,4024.2,0.44705]
[1760283971506,1.97084518,4025.4,4024.9,4.97921574]
[1760283971701,3.4363,4025.0,4023.7,3.4362]
[1760283971907,0.44703,4024.5,4023.4,0.44715]
[1760283972107,0.44703,4024.5,4023.6,6.26258732]
[1760283972304,3.2078,4025.1,4024.3,3.2078]
[1760283972505,0.00187069,4025.1,4024.4,3.4362]
[1760283972705,3.2078,4026.1,4025.5,0.44692]
[1760283972901,0.44688,4025.9,4025.3,3.2078]
[1760283973107,0.44688,4025.9,4025.0,6.26258732]
[1760283973108,0.44691,4025.6,4025.0,9.69878732]
[1760283973316,0.44694,4025.4,4025.0,9.69878732]
[1760283973515,3.2078,4025.6,4025.0,9.69878732]
[1760283973711,0.44696,4025.2,4025.0,6.26258732]
[1760283973916,3.2078,4025.2,4025.1,3.4362]
[1760283974118,3.2078,4025.2,4024.5,3.2078]
[1760283974415,0.44947463,4025.6,4025.2,3.4362]
[1760283974611,3.2078,4025.4,4025.2,3.4362]
[1760283974919,3.2078,4025.4,4025.1,6.26258732]
[1760283975217,0.44695,4025.2,4024.5,3.4362]
[1760283975418,3.2078,4024.8,4024.5,3.4362]
[1760283975614,2.77970196,4025.1,4024.6,0.44702]
[1760283975812,3.2078,4025.3,4024.6,0.44702]
[1760283976119,3.2078,4025.3,4024.7,0.447]
[1760283976312,3.2078,4024.8,4024.5,3.4362]
[1760283976507,3.2078,4024.8,4024.3,7.10050579]
[1760283976508,3.2078,4024.8,4024.6,3.88322]
[1760283976718,0.44698,4025.0,4024.6,3.4362]
[1760283977017,0.44704,4024.5,4024.3,0.00246628]
[1760283977313,1.11759,4024.5,4023.8,3.2078]
[1760283977514,3.4363,4024.0,4023.2,3.2078]
[1760283977817,3.4363,4022.9,4022.8,0.83545219]
[1760283978115,0.44724,4022.7,4022.5,3.2078]
[1760283978314,0.44724,4022.7,4022.0,2.29873773]